bitfinex-derivatives/quotes_SOLF0:USTF0_20220101
["timestamp","ask_amount","ask_price","bid_price","bid_amount"]
[1641045502815,27.66479,172.71,172.67,3.0]
[1641045504517,27.66479,172.71,172.64,4.1161096]
[1641045504816,27.66479,172.71,172.67,3.0]
[1641045506416,3.29165969,172.7,172.65,4.1161096]
[1641045506715,27.66479,172.71,172.67,3.0]
[1641045507116,3.291555,172.7,172.67,3.0]
[1641045507516,3.291555,172.7,172.64,4.1161096]
[1641045507817,3.291555,172.7,172.67,3.0]
[1641045508819,3.291555,172.7,172.66,3.0]
[1641045509620,27.66479,172.71,172.66,3.0]
[1641045509918,27.66479,172.71,172.67,3.0]
[1641045510923,5.78954986,172.72,172.65,4.1161096]
[1641045511320,3.29128801,172.71,172.67,3.0]
[1641045511618,3.29128801,172.71,172.65,4.1161096]
[1641045512021,5.78954986,172.72,172.65,4.1161096]
[1641045512220,5.78954986,172.72,172.68,3.0]
[1641045512621,5.78954986,172.72,172.67,3.0]
[1641045513021,3.29127669,172.71,172.67,3.0]
[1641045514424,3.29127669,172.71,172.66,31.0838]
[1641045515022,5.78954986,172.72,172.66,31.0838]
[1641045515222,5.78988507,172.71,172.66,3.0]
[1641045515624,9.08154735,172.71,172.66,3.0]
[1641045516029,3.29166228,172.7,172.66,3.0]
[1641045516730,30.95645228,172.7,172.66,3.0]
[1641045516927,30.95645228,172.7,172.63,4.1161096]
[1641045517127,30.95645228,172.7,172.66,3.0]
[1641045517529,27.66479,172.7,172.66,3.0]
[1641045517928,3.2916559,172.69,172.66,3.0]
[1641045518829,27.66479,172.7,172.66,3.0]
[1641045519431,8.22076801,172.69,172.66,3.0]
[1641045519631,8.22076801,172.69,172.63,4.1161096]
[1641045519931,8.22076801,172.69,172.66,3.0]
[1641045520132,8.22076801,172.69,172.64,31.4631]
[1641045520633,27.66479,172.7,172.64,31.4631]
[1641045525240,27.66479,172.7,172.61,133.3847085]
[1641045525438,27.66479,172.7,172.62,30.6777]
[1641045528341,27.66479,172.7,172.58,31.7808996]
[1641045528543,11.51223497,172.69,172.64,4.1161096]
[1641045528742,11.51223497,172.69,172.64,1e-08]
[1641045528942,35.80972587,172.68,172.64,1e-08]
[1641045529141,35.80972587,172.68,172.57,31.9765]
[1641045529347,40.00937219,172.65,172.57,44.32108219]
[1641045535352,40.00937219,172.65,172.6,3.0]
[1641045537255,40.00937219,172.65,172.57,44.32108219]
[1641045537956,12.34458219,172.65,172.57,44.32108219]
[1641045538357,12.34458219,172.65,172.62,3.0]
[1641045538559,40.00937219,172.65,172.62,3.0]
[1641045539558,2.0917273,172.64,172.62,3.0]
[1641045540159,27.66479,172.65,172.62,3.0]
[1641045541059,2.08681592,172.64,172.62,3.0]
[1641045541660,27.66479,172.65,172.62,3.0]
[1641045542061,27.66479,172.65,172.57,31.9765]
[1641045542259,2.08679765,172.64,172.63,3.0]
[1641045542864,2.0861429,172.67,172.63,3.0]
[1641045543063,2.0861429,172.67,172.66,3.0]
[1641045543262,2.0861429,172.67,172.65,3.0]
[1641045543863,2.0861429,172.67,172.66,3.0]
[1641045544364,39.98055784,172.68,172.66,3.0]
[1641045544765,2.08616392,172.67,172.61,3.0]
[1641045545165,2.08616392,172.67,172.66,3.0]
[1641045546068,27.66479,172.68,172.66,3.0]
[1641045546869,2.08610623,172.67,172.66,3.0]
[1641045547568,27.66479,172.68,172.66,3.0]
[1641045548070,2.08609485,172.67,172.66,3.0]
[1641045548870,27.66479,172.68,172.66,3.0]
[1641045549370,2.08599649,172.67,172.66,3.0]
[1641045549873,39.98055784,172.68,172.66,3.0]
[1641045550978,39.98055784,172.68,172.63,30.9335]
[1641045550979,39.98055784,172.68,172.67,3.0]
[1641045551672,27.66479,172.68,172.67,3.0]
[1641045557078,27.66479,172.68,172.66,3.0]
[1641045558277,40.00704382,172.68,172.66,3.0]
[1641045559082,27.66479,172.68,172.66,3.0]
[1641045559577,40.00712064,172.68,172.66,3.0]
[1641045560478,27.66479,172.68,172.66,3.0]
[1641045560679,27.66479,172.68,172.65,3.0]
[1641045561281,12.34233064,172.67,172.65,3.0]
[1641045561881,40.00747998,172.68,172.65,3.0]
[1641045562481,12.34268998,172.68,172.65,3.0]
[1641045563281,12.34268998,172.68,172.61,30.0961]
[1641045563883,12.34268998,172.68,172.62,2.02324025]
[1641045564285,12.34268998,172.68,172.64,3.0]
[1641045564785,12.34268998,172.67,172.62,2.02324025]
[1641045564991,12.34268998,172.67,172.66,3.0]
[1641045565588,12.34268998,172.69,172.66,3.0]
[1641045565788,12.34268998,172.69,172.67,3.0]
[1641045565988,12.34268998,172.69,172.62,3.0]
[1641045566189,2.08621354,172.69,172.62,3.0]
[1641045566390,2.08621354,172.69,172.67,3.0]
[1641045566890,2.08621354,172.7,172.67,3.0]
[1641045568894,12.34268998,172.69,172.67,3.0]
[1641045569295,18.21968998,172.69,172.67,3.0]
[1641045569594,2.08621354,172.68,172.67,3.0]
[1641045570396,14.42890352,172.68,172.67,3.0]
[1641045571105,2.08621354,172.68,172.67,3.0]
[1641045571797,14.43157436,172.7,172.67,3.0]
[1641045572598,12.34114333,172.68,172.67,3.0]
[1641045573199,2.09043103,172.7,172.67,3.0]
[1641045573903,12.34206288,172.68,172.67,3.0]
[1641045575103,2.09043103,172.7,172.67,3.0]
[1641045575505,12.34221377,172.68,172.67,3.0]
[1641045576407,14.4326448,172.69,172.67,3.0]
[1641045577106,12.34221377,172.68,172.67,3.0]
[1641045577606,14.43241337,172.69,172.67,3.0]
[1641045583817,12.34198234,172.68,172.67,3.0]
[1641045584421,2.09043103,172.69,172.67,3.0]
[1641045587922,14.41110092,172.7,172.67,3.0]
[1641045588523,14.41110092,172.7,172.63,3.0]
[1641045589326,3.29180932,172.69,172.63,3.0]
[1641045589525,12.32066989,172.67,172.61,4.10752724]
[1641045589925,27.66479,172.66,172.61,4.10752724]
[1641045590124,27.66479,172.66,172.62,3.0]
[1641045590524,4.10755193,172.63,172.62,3.0]
[1641045591124,2.09043103,172.65,172.62,3.0]
[1641045591826,4.10745416,172.64,172.62,3.0]
[1641045592529,2.08775458,172.65,172.62,3.0]
[1641045593127,4.10747384,172.64,172.62,3.0]
[1641045593931,2.08776527,172.65,172.62,3.0]
[1641045594631,4.10748389,172.64,172.62,3.0]
[1641045595234,27.66479,172.66,172.62,3.0]
[1641045595432,2.09146608,172.65,172.62,7.10752724]
[1641045595933,39.98545989,172.66,172.62,7.10752724]
[1641045596533,2.09146304,172.65,172.62,7.10752724]
[1641045597134,39.98545989,172.66,172.62,7.10752724]
[1641045597636,2.09146983,172.65,172.62,4.10752724]
[1641045597836,2.09146983,172.65,172.59,31.6474]
[1641045598136,27.66479,172.61,172.59,31.6474]
[1641045598336,27.66479,172.61,172.58,12.34458219]
[1641045598635,27.66479,172.61,172.55,12.34458219]
[1641045598836,27.66479,172.61,172.58,3.0]
[1641045599436,2.09213379,172.6,172.59,2.02312862]
[1641045599637,2.09213379,172.6,172.59,5.02312862]
[1641045600340,2.09213379,172.6,172.59,2.02312862]
[1641045600542,27.66479,172.62,172.59,2.02312862]
[1641045601341,2.09212258,172.61,172.59,2.02312862]
[1641045601942,27.66479,172.62,172.59,2.02312862]
[1641045602544,2.09212237,172.61,172.59,2.02312862]
[1641045603346,27.66479,172.62,172.59,2.02312862]
[1641045603747,27.66479,172.62,172.59,10.20212862]
[1641045604148,27.66479,172.62,172.59,8.179]
[1641045605348,21.08039451,172.62,172.59,8.179]
[1641045605949,21.08039451,172.62,172.59,3.0]
[1641045606249,31.8144,172.64,172.59,3.0]
[1641045608555,2.17600516,172.63,172.59,3.0]
[1641045608752,2.17600516,172.63,172.54,27.66479]
[1641045608953,2.17600516,172.63,172.59,3.0]
[1641045611056,2.17600516,172.63,172.55,27.66479]
[1641045612154,2.17600516,172.64,172.55,27.66479]
[1641045612755,2.17600516,172.64,172.61,3.0]
[1641045613257,2.17600516,172.64,172.56,3.0]
[1641045613457,2.17600516,172.66,172.56,3.0]
[1641045613659,2.17600516,172.66,172.55,30.66479]
[1641045614060,2.17600516,172.66,172.56,1.91625491]
[1641045614357,2.17600516,172.66,172.65,3.0]
[1641045614857,2.17600516,172.66,172.61,29.9369]
[1641045615263,10.75227312,172.66,172.61,29.9369]
[1641045616063,8.57626796,172.66,172.62,1.92710099]
[1641045616264,12.34266086,172.67,172.62,1.92710099]
[1641045618567,12.34266086,172.67,172.66,3.0]
[1641045621268,14.51866602,172.67,172.66,3.0]
[1641045622771,12.34266086,172.67,172.66,3.0]
[1641045622973,27.66479,172.68,172.66,3.0]
[1641045623574,37.3010556,172.69,172.66,3.0]
[1641045624077,2.17517573,172.68,172.66,3.0]
[1641045624977,2.17517573,172.68,172.61,32.9369]
[1641045625376,29.83996573,172.68,172.61,32.9369]
[1641045625977,2.17517573,172.68,172.67,3.0]
[1641045626177,5.7905556,172.69,172.67,3.0]
[1641045626379,5.7905556,172.69,172.68,3.0]
[1641045627579,7.96558711,172.69,172.68,3.0]
[1641045628280,7.96558711,172.69,172.67,3.0]
[1641045628978,7.96558711,172.69,172.68,3.0]
[1641045629181,5.7905556,172.69,172.68,3.0]
[1641045629982,5.7905556,172.69,172.61,29.9369]
[1641045630481,5.7905556,172.69,172.65,3.0]
[1641045631183,5.7905556,172.69,172.61,29.9369]
[1641045631383,27.66479,172.68,172.66,3.0]
[1641045632687,27.66479,172.68,172.61,29.9369]
[1641045633086,27.66479,172.68,172.66,3.0]
[1641045633487,12.34266086,172.67,172.66,3.0]
[1641045634988,12.34266086,172.67,172.61,29.9369]
[1641045635689,12.34266086,172.67,172.64,3.0]
[1641045635890,12.34266086,172.67,172.61,29.9369]
[1641045636291,12.34266086,172.66,172.62,1.92709324]
[1641045637294,12.34266086,172.66,172.65,3.0]
[1641045642097,12.34266086,172.67,172.65,3.0]
[1641045642796,12.34266086,172.67,172.61,29.9369]
[1641045644601,12.34266086,172.67,172.63,3.0]
[1641045644799,14.52691428,172.67,172.61,29.9369]
[1641045645001,14.52691428,172.67,172.64,3.0]
[1641045645200,14.52691428,172.67,172.61,29.9369]
[1641045645499,14.52691428,172.67,172.65,3.0]
[1641045645699,14.52691428,172.67,172.61,29.9369]
[1641045645901,14.52691428,172.67,172.64,3.0]
[1641045647103,12.34266086,172.66,172.64,3.0]
[1641045647902,14.52691428,172.67,172.61,29.9369]
[1641045648104,14.52691428,172.67,172.64,3.0]
[1641045649507,14.52691428,172.67,172.61,29.9369]
[1641045650010,2.18425342,172.67,172.62,1.92443392]
[1641045650609,14.52691428,172.67,172.62,1.92443392]
[1641045651212,14.52691428,172.67,172.66,3.0]
[1641045651410,2.18425342,172.67,172.66,3.0]
[1641045653510,12.34266086,172.67,172.66,3.0]
[1641045653810,40.00745086,172.67,172.66,3.0]
[1641045654811,42.19170428,172.67,172.66,3.0]
[1641045657213,14.52691428,172.67,172.66,3.0]
[1641045657816,42.19170428,172.67,172.66,3.0]
[1641045658416,14.52691428,172.67,172.66,3.0]
[1641045658815,12.34266086,172.67,172.66,3.0]
[1641045660819,14.52691428,172.67,172.66,3.0]
[1641045667626,12.34266086,172.67,172.66,3.0]
[1641045668027,40.00745086,172.67,172.66,3.0]
[1641045668531,42.19170428,172.67,172.66,3.0]
[1641045669831,14.52691428,172.67,172.66,3.0]
[1641045670332,42.19170428,172.67,172.66,3.0]
[1641045671133,12.34266086,172.67,172.66,3.0]
[1641045673135,40.00745086,172.67,172.66,3.0]
[1641045673637,42.19170428,172.67,172.66,3.0]
[1641045674035,14.52691428,172.67,172.66,3.0]
[1641045674938,12.34266086,172.67,172.66,3.0]
[1641045675236,40.00745086,172.67,172.66,3.0]
[1641045676137,42.19170428,172.67,172.66,3.0]
[1641045676536,14.52691428,172.67,172.66,3.0]
[1641045677637,12.34266086,172.67,172.66,3.0]
[1641045677837,40.00745086,172.67,172.66,3.0]
[1641045678742,42.19170428,172.67,172.66,3.0]
[1641045679843,27.66479,172.67,172.66,3.0]
[1641045680546,42.19331388,172.67,172.66,3.0]
[1641045681546,5.7905556,172.69,172.66,3.0]
[1641045682144,27.66479,172.68,172.66,3.0]
[1641045682644,12.34168538,172.67,172.66,3.0]
[1641045683346,2.18689105,172.67,172.66,3.0]
[1641045683948,12.34161755,172.67,172.66,3.0]
[1641045684449,2.18686393,172.67,172.66,3.0]
[1641045685250,12.3416161,172.67,172.66,3.0]
[1641045685953,2.18687262,172.67,172.66,3.0]
[1641045686955,12.34160325,172.67,172.66,3.0]
[1641045687653,60.58005575,172.71,172.66,3.0]
[1641045687853,12.34093599,172.68,172.66,3.0]
[1641045688456,10.76002322,172.7,172.66,3.0]
[1641045688855,10.76002322,172.7,172.64,33.92967034]
[1641045689058,10.76002322,172.7,172.68,3.0]
[1641045690157,10.76002322,172.7,172.64,33.92967034]
[1641045690658,10.76002322,172.7,172.69,3.0]
[1641045691459,10.76002322,172.7,172.64,4.11427034]
[1641045691859,10.76002322,172.7,172.69,3.0]
[1641045695766,2.18661627,172.7,172.69,3.0]
[1641045699169,27.66479,172.71,172.69,3.0]
[1641045699368,27.66479,172.71,172.66,4.11427034]
[1641045699568,2.18294853,172.7,172.66,4.11427034]
[1641045699868,2.18294853,172.7,172.69,3.0]
[1641045700268,27.66479,172.71,172.69,3.0]
[1641045700474,27.66479,172.71,172.68,3.0]
[1641045700670,27.66479,172.71,172.7,3.0]
[1641045707979,27.66479,172.71,172.68,4.11427034]
[1641045708882,12.34035227,172.7,172.68,3.0]
[1641045709082,12.34035227,172.7,172.66,9.04143675]
[1641045709284,12.34035227,172.7,172.66,6.04143675]
[1641045709485,17.85035227,172.7,172.66,6.04143675]
[1641045709683,5.51,172.7,172.66,4.11427034]
[1641045709883,14.08384039,172.7,172.65,3.0]
[1641045710786,12.34251907,172.67,172.65,3.0]
[1641045711483,12.34251907,172.67,172.63,4.11427034]
[1641045711683,27.66479,172.68,172.63,4.11427034]
[1641045711883,27.66479,172.68,172.65,3.0]
[1641045712383,31.0486,172.7,172.65,3.0]
[1641045712585,12.34258962,172.67,172.65,3.0]
[1641045712985,12.34258962,172.67,172.63,4.11427034]
[1641045713385,27.66479,172.68,172.63,4.11427034]
[1641045713587,27.66479,172.68,172.65,3.0]
[1641045713986,27.66479,172.68,172.63,4.11427034]
[1641045714387,12.34259052,172.67,172.63,4.11427034]
[1641045714889,39.99366293,172.68,172.62,6.03922285]
[1641045715588,39.99366293,172.68,172.66,3.0]
[1641045715788,12.32887293,172.68,172.62,4.11427034]
[1641045715987,12.32887293,172.68,172.67,3.0]
[1641045716289,12.32887293,172.68,172.63,4.11427034]
[1641045716487,12.32887293,172.68,172.66,3.0]
[1641045716688,12.32887293,172.68,172.63,4.11427034]
[1641045716888,12.32887293,172.68,172.67,3.0]
[1641045717387,12.32887293,172.68,172.64,31.491]
[1641045717587,12.32887293,172.68,172.67,3.0]
[1641045717788,2.1845473,172.68,172.67,3.0]
[1641045718588,39.99366293,172.69,172.67,3.0]
[1641045718788,39.99366293,172.69,172.64,31.491]
[1641045719190,39.99366293,172.69,172.67,3.0]
[1641045719790,2.18432488,172.68,172.67,3.0]
[1641045720192,2.18432488,172.68,172.64,35.60527034]
[1641045720391,39.99366293,172.69,172.65,3.0]
[1641045720592,12.32887293,172.68,172.67,3.0]
[1641045721196,14.51337764,172.68,172.67,3.0]
[1641045721796,2.18450471,172.68,172.67,3.0]
[1641045723096,12.32887293,172.69,172.67,3.0]
[1641045723297,39.99366293,172.69,172.67,3.0]
[1641045723700,39.99366293,172.69,172.64,31.491]
[1641045724301,2.18437189,172.68,172.64,31.491]
[1641045724798,12.32887293,172.67,172.64,31.491]
[1641045725299,12.32887293,172.67,172.63,4.11427034]
[1641045725499,10.75927415,172.68,172.63,4.11427034]
[1641045726301,14.52658663,172.68,172.64,4.11427034]
[1641045727001,14.52658663,172.68,172.63,6.04137467]
[1641045727700,14.52658663,172.68,172.64,4.11427034]
[1641045728101,12.34221474,172.67,172.63,6.04137467]
[1641045728701,10.75903087,172.68,172.63,6.04137467]
[1641045729401,14.52651922,172.68,172.63,6.04137467]
[1641045730902,14.52651922,172.68,172.64,4.11427034]
[1641045731403,12.34214733,172.67,172.63,10.45127034]
[1641045731602,12.34214733,172.67,172.63,13.45127034]
[1641045731802,12.34214733,172.67,172.63,10.45127034]
[1641045732403,12.33769247,172.68,172.63,10.45127034]
[1641045732602,12.33769247,172.68,172.63,13.45127034]
[1641045732803,12.33769247,172.68,172.64,3.0]
[1641045733105,12.33769247,172.68,172.63,10.45127034]
[1641045733405,12.33769247,172.68,172.64,6.04072449]
[1641045734103,12.33769247,172.68,172.63,7.11427034]
[1641045734704,12.33769247,172.68,172.64,9.0407247]
[1641045735204,12.33769247,172.68,172.64,6.0407247]
[1641045735406,12.33769247,172.68,172.64,9.0407247]
[1641045735607,12.33769247,172.68,172.65,3.0]
[1641045736305,12.33769247,172.68,172.67,4.11427034]
[1641045736506,14.52206436,172.71,172.67,4.11427034]
[1641045737808,57.40509,172.72,172.67,4.11427034]
[1641045737809,40.00017233,172.72,172.67,4.11427034]
[1641045738606,2.18510595,172.71,172.68,4.11427034]
[1641045739207,12.33538233,172.71,172.67,4.11427034]
[1641045740009,2.18514729,172.71,172.68,4.11427034]
[1641045740710,40.00017233,172.72,172.68,4.11427034]
[1641045741711,2.18517237,172.71,172.68,4.11427034]
[1641045742511,40.00017233,172.72,172.66,30.7073]
[1641045742712,12.33538233,172.7,172.66,30.7073]
[1641045744114,14.52109881,172.71,172.67,6.04079142]
[1641045746018,12.34029946,172.7,172.66,34.82157034]
[1641045746818,2.18608095,172.71,172.67,6.04145524]
[1641045747018,14.52587852,172.71,172.67,9.04145524]
[1641045747418,14.52587852,172.71,172.67,6.04145524]
[1641045747621,2.18608095,172.71,172.68,6.04145524]
[1641045748321,12.33979757,172.71,172.67,9.04145524]
[1641045749119,2.18575254,172.71,172.68,6.04145524]
[1641045749822,27.66479,172.73,172.68,4.11427034]
[1641045750422,14.52483368,172.72,172.68,4.11427034]
[1641045750823,27.66479,172.73,172.68,4.11427034]
[1641045751722,14.52448607,172.72,172.68,4.11427034]
[1641045752422,4.229,172.72,172.68,4.11427034]
[1641045753123,2.18588178,172.71,172.68,4.11427034]
[1641045753726,16.56825438,172.72,172.68,4.11427034]
[1641045754726,2.18574111,172.71,172.68,6.04145524]
[1641045755127,4.229,172.72,172.67,3.0]
[1641045756429,4.229,172.72,172.66,30.7073]
[1641045757629,29.5354,172.75,172.66,30.7073]
[1641045757829,27.66479,172.74,172.66,30.7073]
[1641045758129,29.83990598,172.74,172.66,30.7073]
[1641045758631,2.17511598,172.73,172.66,30.7073]
[1641045761934,2.17511598,172.73,172.66,34.82157034]
[1641045762135,12.27678053,172.7,172.66,34.82157034]
[1641045763137,10.74742,172.71,172.66,34.82157034]
[1641045763639,12.34027501,172.7,172.66,34.82157034]
[1641045764440,10.74742,172.71,172.66,34.82157034]
[1641045765142,4.11343626,172.67,172.66,34.82157034]
[1641045765343,4.11343626,172.67,172.66,4.11427034]
[1641045766246,10.74742,172.71,172.66,6.04143743]
[1641045766746,4.11344012,172.67,172.66,6.04143743]
[1641045767247,4.11344012,172.67,172.66,9.04143743]
[1641045767946,4.11344012,172.67,172.66,6.04143743]
[1641045768146,4.11318159,172.68,172.66,1.92716709]
[1641045769349,44.35674478,172.72,172.67,4.1133739]
[1641045769550,12.33954478,172.71,172.67,4.1133739]
[1641045770151,14.52563192,172.71,172.67,6.04054099]
[1641045770751,32.0172,172.72,172.67,6.04054099]
[1641045771653,2.18575573,172.71,172.69,4.1133739]
[1641045772250,32.0172,172.72,172.69,4.1133739]
[1641045772451,27.66479,172.74,172.68,4.1133739]
[1641045773153,27.66479,172.74,172.67,6.04054099]
[1641045773154,12.33970566,172.71,172.67,6.04054099]
[1641045773854,41.36216341,172.73,172.67,6.04054099]
[1641045775056,2.18604725,172.72,172.68,4.1133739]
[1641045775256,14.52538124,172.72,172.68,4.1133739]
[1641045776959,14.52538124,172.72,172.67,6.04054099]
[1641045781062,14.52538124,172.72,172.68,27.66479]
[1641045782962,14.52538124,172.72,172.67,4.1133739]
[1641045783864,14.52538124,172.72,172.67,6.03889055]
[1641045784564,4.10946119,172.68,172.67,6.03889055]
[1641045785266,14.52538124,172.72,172.67,1.92551665]
[1641045785467,14.52538124,172.72,172.66,1.92551665]
[1641045786366,4.1131429,172.68,172.67,4.1131429]
[1641045786966,10.75733105,172.72,172.67,4.1131429]
[1641045787770,12.33963968,172.71,172.67,4.1131429]
[1641045788570,10.75733105,172.72,172.67,4.1131429]
[1641045789270,12.3395822,172.71,172.67,4.1131429]
[1641045789770,10.75733105,172.72,172.67,4.1131429]
[1641045790570,12.33959257,172.71,172.67,4.1131429]
[1641045791370,10.75733105,172.72,172.67,4.1131429]
[1641045791971,12.33973901,172.71,172.67,4.1131429]
[1641045792671,10.75733105,172.72,172.67,4.1131429]
[1641045793373,12.33971267,172.71,172.67,4.1131429]
[1641045793875,4.11318857,172.68,172.67,4.1131429]
[1641045794578,12.3395434,172.71,172.67,4.1131429]
[1641045795281,14.52555439,172.72,172.68,4.1131429]
[1641045796483,12.33950714,172.71,172.67,6.03865955]
[1641045797983,2.18604725,172.72,172.68,4.1131429]
[1641045798684,42.93531559,172.73,172.68,4.1131429]
[1641045799284,2.18423633,172.72,172.68,4.1131429]
[1641045799887,42.93531559,172.73,172.68,4.1131429]
[1641045800486,14.51517313,172.72,172.68,4.1131429]
[1641045801091,14.51517313,172.72,172.67,6.03865955]
[1641045802889,12.33081559,172.71,172.66,31.7779329]
[1641045804491,14.51517313,172.72,172.67,6.03909055]
[1641045807199,12.33081559,172.71,172.67,6.03909055]
[1641045807700,10.75598014,172.72,172.67,6.03909055]
[1641045808500,12.33971199,172.71,172.67,6.03909055]
[1641045809003,10.75598014,172.72,172.67,6.03909055]
[1641045810005,12.33974889,172.71,172.67,6.03909055]
[1641045811906,12.33974889,172.69,172.66,27.66479]
[1641045812705,12.34074272,172.7,172.66,31.7779329]
[1641045813507,10.75598014,172.72,172.66,31.7779329]
[1641045814007,12.34059985,172.7,172.66,31.7779329]
[1641045815008,4.1134779,172.67,172.66,31.7779329]
[1641045815711,10.75598014,172.72,172.66,27.66479]
[1641045815908,12.3403101,172.71,172.66,29.59195782]
[1641045816608,12.3403101,172.71,172.67,6.04060459]
[1641045817311,12.3403101,172.7,172.66,31.77822677]
[1641045818010,14.50295756,172.72,172.66,27.66479]
[1641045818212,4.514,172.7,172.66,27.66479]
[1641045818809,2.18435754,172.69,172.66,27.66479]
[1641045819313,4.514,172.7,172.66,31.77822677]
[1641045820416,2.18232568,172.69,172.66,31.77822677]
[1641045820715,2.18232568,172.69,172.66,4.11343677]
[1641045821214,2.18232568,172.69,172.63,4.11343677]
[1641045821215,3.0,172.67,172.63,4.11343677]
[1641045821416,3.0,172.65,172.63,4.11343677]
[1641045822216,3.0,172.64,172.63,4.11343677]
[1641045822716,30.66479,172.64,172.63,3.677e-05]
[1641045822917,30.66479,172.64,172.6,3.677e-05]
[1641045823118,32.84853083,172.64,172.6,3.677e-05]
[1641045823319,64.42403083,172.64,172.6,3.677e-05]
[1641045823717,62.24029,172.64,172.56,43.92141746]
[1641045823916,2.22103323,172.63,172.57,1.92363527]
[1641045824518,62.24029,172.64,172.57,1.92363527]
[1641045825319,2.1841283,172.63,172.57,1.92363527]
[1641045825921,62.24029,172.64,172.57,1.92363527]
[1641045826623,2.18404641,172.63,172.57,1.92363527]
[1641045827323,62.24029,172.64,172.57,1.92363527]
[1641045828124,2.18797557,172.63,172.57,1.92363527]
[1641045828725,12.31860002,172.63,172.57,1.92363527]
[1641045829124,27.66479,172.61,172.57,1.92363527]
[1641045830829,2.18818467,172.6,172.57,1.92363527]
[1641045831427,27.66479,172.63,172.57,1.92363527]
[1641045832330,2.22506753,172.62,172.57,1.92363527]
[1641045833330,27.66479,172.63,172.57,1.92363527]
[1641045834030,2.22503314,172.62,172.57,1.92363527]
[1641045834830,27.66479,172.63,172.57,1.92363527]
[1641045835430,2.22502004,172.62,172.57,1.92363527]
[1641045836233,27.66479,172.63,172.57,1.92363527]
[1641045836840,2.22493519,172.62,172.57,1.92363527]
[1641045837435,27.66479,172.63,172.57,1.92363527]
[1641045838035,2.22493921,172.62,172.57,1.92363527]
[1641045838837,27.66479,172.63,172.57,1.92363527]
[1641045839735,2.22493511,172.62,172.57,1.92363527]
[1641045841237,27.66479,172.63,172.57,1.92363527]
[1641045841839,2.22517964,172.62,172.57,1.92363527]
[1641045842439,40.01035523,172.63,172.56,29.6532]
[1641045842738,27.66479,172.63,172.56,29.6532]
[1641045848146,2.2251611,172.62,172.57,1.89001046]
[1641045848847,40.01035523,172.63,172.57,1.89001046]
[1641045849449,12.34556523,172.63,172.57,4.89001046]
[1641045850451,2.2245503,172.65,172.58,14.23459265]
[1641045850850,2.2245503,172.65,172.58,19.66859265]
[1641045851050,40.00863885,172.66,172.58,19.66859265]
[1641045851853,40.00863885,172.66,172.58,22.66859265]
[1641045852052,12.34384885,172.66,172.58,22.66859265]
[1641045852354,2.22437535,172.65,172.59,1.89001046]
[1641045852952,14.56821326,172.66,172.59,1.89001046]
[1641045853755,31.4187,172.67,172.59,1.89001046]
[1641045854359,14.56768143,172.66,172.59,1.89001046]
[1641045855657,31.4187,172.67,172.59,1.89001046]
[1641045856060,2.21589449,172.66,172.59,1.89001046]
[1641045857262,31.4187,172.67,172.59,1.89001046]
[1641045857860,2.21589627,172.66,172.59,1.89001046]
[1641045858060,2.21589627,172.66,172.59,33.19551046]
[1641045858461,31.4187,172.67,172.59,33.19551046]
[1641045859061,2.21600783,172.66,172.59,31.3055]
[1641045860661,2.21600783,172.66,172.58,5.434]
[1641045860864,2.21600783,172.66,172.56,27.66479]
[1641045861163,2.21600783,172.66,172.56,59.82039]
[1641045861660,2.21600783,172.66,172.57,1.88294846]
[1641045865768,2.21600783,172.66,172.57,4.88294846]
[1641045867172,2.21600783,172.66,172.58,1.88294846]
[1641045869172,2.21600783,172.66,172.57,1.88294846]
[1641045870272,7.69000783,172.66,172.57,1.88294846]
[1641045870472,19.98663137,172.66,172.57,1.88294846]
[1641045871374,2.21600783,172.65,172.57,1.88294846]
[1641045871672,27.66479,172.63,172.57,1.88294846]
[1641045872572,2.21600783,172.62,172.57,1.88294846]
[1641045873174,27.66479,172.63,172.57,1.88294846]
[1641045873374,12.29662354,172.64,172.57,4.88294846]
[1641045873579,12.29662354,172.64,172.6,27.66479]
[1641045874276,45.99038554,172.67,172.61,1.88294846]
[1641045874976,2.22398297,172.66,172.61,1.88294846]
[1641045876078,31.4239,172.67,172.61,1.88294846]
[1641045876577,2.22412234,172.66,172.61,1.88294846]
[1641045878080,43.76620161,172.67,172.61,1.88294846]